Cogmind - Beta 11.1 @@@ ROGUE MODE // 2022.06.17 @ 20:53:18 Player: SearedSteak Result: Destroyed by L-31 Rogue with Katana Performance ------------- Evolutions (1) 500 Regions Visited (2) 400 Robots Destroyed (53) 265 Value Destroyed (1538) 1538 Prototype IDs (7) 140 Alien Tech Used (0) 0 Bonus (87) 87 TOTAL SCORE: 2930 Bonus ------- High Alert Combat Kills 87 Cogmind --------- Core Integrity 0/400 Matter 289/300 Energy 185/265 System Corruption 5% Temperature Cool (59) Movement Core (500) Ox9 Location -9/Materials Parts ------- > --- POWER (1) -------- Improved Ion Engine > --- PROPULSION (4) --- (None) > --- UTILITY (2) ------ Large Storage Unit > --- WEAPON (2) ------- Beam Cannon > --- INVENTORY (15) --- Small Matter Pod (50) Faulty Advanced Beam Cannon Peak State ------------ > --- POWER ------------ Improved Ion Engine > --- PROPULSION ------- Aluminum Leg Aluminum Leg Aluminum Leg Aluminum Leg > --- UTILITY ---------- Large Storage Unit System Shield > --- WEAPON ----------- Heavy EM Pulse Gun Rocket Launcher > --- INVENTORY -------- Small Matter Pod Light Armor Plating Beam Cannon Advanced Beam Cannon [Rating: 14] Favorites ----------- Power Ion Engine Engine Ion Engine Power Core Light Nuclear Core Propulsion Aluminum Leg Leg Aluminum Leg Utility Large Storage Unit Storage Large Storage Unit Hackware System Shield Protection Light Armor Plating Weapon Heavy EM Pulse Gun Energy Gun Heavy EM Pulse Gun Energy Cannon Beam Cannon Ballistic Gun Shotgun Launcher Rocket Launcher Slashing Weapon Katana Build | -11 -10 -9 ------- Run | Scr Mat Mat Slots Evolved 2 | . . 2 Power . | . . . Propulsion 2 | . . 2 Utility . | . . . Weapon . | . . . Parts Attached 48 | 6 18 24 Power 7 | 1 2 4 Engine 6 | 1 1 4 Core 1 | . 1 . Reactor . | . . . Propulsion 14 | 2 5 7 Treads . | . . . Leg 14 | 2 5 7 Wheel . | . . . Hover . | . . . Flight . | . . . Utility 10 | 1 5 4 Device . | . . . Storage 8 | 1 5 2 Processor . | . . . Hackware 1 | . . 1 Protection 1 | . . 1 Artifact . | . . . Weapon 17 | 2 6 9 Energy Gun 8 | 1 3 4 Energy Cannon 2 | . 1 1 Ballistic Gun 4 | 1 2 1 Ballistic Cannon . | . . . Launcher 2 | . . 2 Special Weapon . | . . . Impact Weapon . | . . . Slashing Weapon 1 | . . 1 Piercing Weapon . | . . . Special Melee Weapon . | . . . Unidentified Prototypes 2 | . 1 1 Parts Lost 16 | . 1 15 Power 2 | . . 2 Propulsion 7 | . . 7 Utility 1 | . . 1 Weapon 6 | . 1 5 Highest Loss Streak 7 | . 1 7 To Critical Strikes . | . . . Average Slot Usage (%) 87 | . 82 91 Engine 6 | . 3 10 Leg 32 | . 25 39 Storage 19 | . 25 13 Hackware 2 | . . 4 Protection 1 | . . 2 Energy Gun 16 | . 19 13 Ballistic Gun 3 | . 5 1 Launcher 2 | . . 5 Naked Turns . | . . . Heaviest Build 38 | 14 31 38 Greatest Support 43 | 20 26 43 Greatest Overweight (x) 8 | . 8 3 Average Overweight (x) . | . . . Largest Inventory Capacity 15 | 8 15 15 Average Capacity 13 | 6 12 15 Most Carried 5 | 4 4 5 Average Carried 2 | . 2 1 Final Capacity 15 | 8 15 15 Final Carried 2 | . 1 2 Class Distribution -------------------- 56% | Mutant 43% | Scavenger-Mutant Dominant Class ---------------- Mutant | -10/Materials Scavenger-Mutant | -9/Materials Resources | -11 -10 -9 ----------- Run | Scr Mat Mat Matter Collected 843 | 178 305 360 Remotely . | . . . Salvage Created 1790 | . 465 1325 Parts 110 | . 23 87 Haulers Intercepted 1 | . . 1 Recyclers Shooed 3 | . 3 . Parts Field Recycled . | . . . Retrieved Matter . | . . . Parts Self-Destructed . | . . . Prevented . | . . . Kills | -11 -10 -9 ------- Run | Scr Mat Mat Combat Hostiles Destroyed 44 | . 12 32 Melee 4 | . . 4 Guns 24 | . 8 16 Cannons 5 | . 4 1 AOE 11 | . . 11 Classes Destroyed 11 | . 2 9 Worker 1 | . . 1 Hauler 1 | . . 1 Recycler 1 | . . 1 Mechanic 1 | . . 1 Operator 1 | . . 1 Watcher 4 | . 1 3 Swarmer 9 | . . 9 Grunt 25 | . 12 13 Brawler 1 | . . 1 Duelist 3 | . . 3 Sentry 6 | . . 6 Best Kill Streak 9 | . 2 9 Combat Bots Only 8 | . 2 8 Max Kills in Single Turn 4 | . 1 4 Gunslinging . | . . . Exploded 4 | . . 4 Melee 1 | . . 1 Uniques/NPCs Destroyed . | . . . Combat | -11 -10 -9 -------- Run | Scr Mat Mat Damage Taken 2460 | . 561 1899 Core 557 | . 143 414 Absorbed by Shields . | . . . Core Remaining (%) 71 | 100 42 . Volleys Fired 122 | . 53 69 Largest 2 | . 2 2 Hottest 121 | . 121 106 Shots Fired 148 | . 56 92 Gun 116 | . 35 81 Cannon 23 | . 21 2 Launcher 9 | . . 9 Special . | . . . Kinetic 14 | . 4 10 Thermal 74 | . 52 22 Explosive 9 | . . 9 Electromagnetic 51 | . . 51 Robot Hit Streak 9 | . 6 9 Robot Miss Streak 8 | . 8 6 Penetration Max . | . . . Secondary Targets 1 | . . 1 Max Gunslinging Chain 1 | . . 1 Shots Hit Robots 95 | . 38 57 Core Hits 91 | . 33 58 Critical Kills . | . . . Critical Parts Destroyed . | . . . Critical Strikes 2 | . . 2 Burn 2 | . . 2 Melee Attacks 9 | . . 9 Impact . | . . . Slashing 9 | . . 9 Piercing . | . . . Sneak Attacks 1 | . . 1 Combat Hostiles . | . . . Follow-up Attacks . | . . . Damage Inflicted 2980 | 5 624 2351 Guns 1196 | . 344 852 Cannons 314 | . 280 34 Explosions 1117 | . . 1117 Melee 252 | . . 252 Ramming 101 | 5 . 96 Kinetic 183 | . 31 152 Thermal 855 | . 593 262 Explosive 1117 | . . 1117 Electromagnetic 472 | . . 472 Impact . | . . . Slashing 252 | . . 252 Piercing . | . . . Highest Corruption 5 | . . 5 Average Corruption 5 | . . 5 Corruption Purged . | . . . Corruption Blocked . | . . . Effects 1 | . . 1 Energy Discharges 1 | . . 1 Overload Shots . | . . . Overflow Damage 111 | . 1 110 Projectiles 1 | . 1 . Explosions 57 | . . 57 Melee 53 | . . 53 Knockbacks . | . . . Impact . | . . . Kinetic . | . . . Secondary . | . . . Self-Inflicted Damage 38 | . . 38 Shots 1 | . . 1 Rammed 1 | . 1 . Targets Rammed 17 | 1 1 15 Kicked 16 | 1 . 15 Crushed . | . . . Highest Temperature 227 | . 227 207 Average Temperature 72 | . 77 67 Received Heat Transfer 897 | . 312 585 Effects 1 | . 1 . Energy Bleed 1 | . 1 . Siege Activations . | . . . Robots Corrupted . | . . . Combat Hostiles . | . . . Parts Fried 1 | . . 1 Impact Corruptions . | . . . Robots Melted . | . . . Combat Hostiles . | . . . Parts Melted 1 | . . 1 Heat Transferred 1890 | . 1113 777 Parts Sabotaged . | . . . Parts Stolen . | . . . Parts Stripped . | . . . Power Chain Reactions . | . . . Missiles Intercepted . | . . . Alert | -11 -10 -9 ------- Run | Scr Mat Mat Peak Influence 681 | . 160 681 Initial 56 | . . 56 Average 208 | . 47 365 Maximum Alert Level 2 | . . 2 Low Security (%) 53 | 100 100 8 Level 1 30 | . . 59 Level 2 16 | . . 31 Level 3 . | . . . Level 4 . | . . . Level 5 . | . . . High Security . | . . . Max Security . | . . . Squads Dispatched 10 | . 4 6 Investigation 4 | . 3 1 Extermination . | . . . Reinforcement 4 | . 1 3 Assault 2 | . . 2 Garrison . | . . . Intercept . | . . . Searches Triggered . | . . . Construction Impeded . | . . . Haulers Reinforced . | . . . Active Scanning Responses . | . . . Cargo Convoy Interrupts . | . . . Stealth | -11 -10 -9 --------- Run | Scr Mat Mat Distress Signals 3 | . . 3 Communications Jammed . | . . . Distress Signals . | . . . Times Spotted 81 | . 21 60 Peak Tracking Total 10 | . 3 10 Tactical Retreats 1 | . . 1 Traps | -11 -10 -9 ------- Run | Scr Mat Mat Traps Triggered 1 | . 1 . Indirectly . | . . . Trap Hack Attempts . | . . . Triggered . | . . . Disarmed . | . . . Reprogrammed . | . . . Reused . | . . . Traps Extracted . | . . . Installed . | . . . Triggered . | . . . Machines | -11 -10 -9 ---------- Run | Scr Mat Mat Machines Disabled 3 | . . 3 Max in Single Turn 1 | . . 1 Machines Sabotaged . | . . . Garrisons Compromised . | . . . Overloaded Fab Kills . | . . . Hacking | -11 -10 -9 --------- Run | Scr Mat Mat Machines Accessed 8 | . 4 4 Terminals 6 | . 3 3 Fabricators . | . . . Repair Stations . | . . . Recycling Units 2 | . 1 1 Scanalyzers . | . . . Garrison Access . | . . . Total Hacks 39 | . 25 14 Successful 25 | . 14 11 Failed 14 | . 11 3 Catastrophic . | . . . Database Lockouts . | . . . Manual . | . . . Terminals 25 | . 15 10 Fabricators . | . . . Repair Stations . | . . . Recycling Units 14 | . 10 4 Scanalyzers . | . . . Garrison Access . | . . . Terminal Hacks 18 | . 9 9 Record 9 | . 6 3 Prototype ID Bank 4 | . 1 3 Alert Level 2 | . 1 1 Dispatch Records 1 | . . 1 Hauler Manifests 1 | . . 1 Zone Layout 1 | . 1 . Fabricator Hacks . | . . . Repair Station Hacks . | . . . Recycling Unit Hacks 7 | . 5 2 Process 2 | . 2 . Report Inventory 2 | . 1 1 Retrieve Matter 1 | . 1 . Retrieve Components 2 | . 1 1 Scanalyzer . | . . . Garrison Access Hacks . | . . . Unauthorized Hacks . | . . . Terminals . | . . . Fabricators . | . . . Repair Stations . | . . . Recycling Units . | . . . Scanalyzers . | . . . Garrison Access . | . . . Data Cores Recovered . | . . . Used . | . . . Hacking Detections 6 | . 4 2 Full Trace Events 4 | . 3 1 Feedback Events . | . . . Feedback Blocked . | . . . Robot Schematics Acquired . | . . . Robots Built . | . . . Authchips . | . . . Time . | . . . Total Robot Build Rating . | . . . Part Schematics Acquired . | . . . Parts Built . | . . . Authchips . | . . . Time . | . . . Total Part Build Rating . | . . . Parts Repaired . | . . . Time . | . . . Parts Recycled . | . . . Recycled Matter . | . . . Retrieved Matter . | . . . Retrieved Components 9 | . . 9 Parts Scanalyzed . | . . . Part Schematics Acquired . | . . . Parts Damaged . | . . . Bothacking | -11 -10 -9 ------------ Run | Scr Mat Mat Used RIF Installer . | . . . Robots Hacked . | . . . Non-combat . | . . . Combat . | . . . Robot Hacks Applied . | . . . Relay Couplers Released . | . . . Fabnet Peak Effective % . | . . . Robots Rewired . | . . . Allies Hacked . | . . . Hacks Repelled . | . . . Allies | -11 -10 -9 -------- Run | Scr Mat Mat Total Allies . | . . . Largest Group . | . . . Highest-Rated Group . | . . . Highest-Rated Ally . | . . . Total Orders . | . . . Ally Attacks . | . . . Total Damage . | . . . Kills . | . . . Allies Corrupted . | . . . Allies Melted . | . . . Intel | -11 -10 -9 ------- Run | Scr Mat Mat Robot Analysis Total . | . . . Derelict Logs Recovered . | . . . Drone Launches . | . . . Drone Recoveries . | . . . Exploration | -11 -10 -9 ------------- Run | Scr Mat Mat Turns Passed 3238 | 85 1499 1654 Spaces Moved 1990 | 63 824 1103 Core 19 | 9 10 . Treads . | . . . Legs 1971 | 54 814 1103 Wheels . | . . . Hover . | . . . Flight . | . . . Fastest Speed 50 | 50 120 120 Average Speed 139 | 110 160 126 Slowest Speed 450 | 120 450 330 Overloaded Moves . | . . . Propulsion Burnouts . | . . . Robots Hopped . | . . . Cave-ins Triggered . | . . . Exploration Rate (%) 48 | 5 91 49 Regions Visited 2 Branch Regions . Pre-discovered Areas . | . . . Known Exits Taken . | . . . Unknown Exits Taken 2 | 1 1 . Scrap Searched . | . . . Spaces Dug 10 | . . 10 Terrain Destroyed 71 | . . 71 Melee . | . . . Projectile . | . . . AOE 71 | . . 71 Terrain Rammed . | . . . Walls Destroyed . | . . . Machines Disabled . | . . . Actions | -11 -10 -9 --------- Run | Scr Mat Mat Total 2282 | 79 946 1257 Wait 19 | . 19 . Move 1988 | 62 823 1103 Hop . | . . . Pick Up 49 | 8 16 25 Fast Attach . | . . . Attach 34 | 6 14 14 Detach 2 | . 2 . Swap 14 | . 4 10 Drop 28 | 2 14 12 Fire 122 | . 53 69 Melee 9 | . . 9 Ram 1 | . 1 . Kick 16 | 1 . 15 Crush . | . . . Escape Stasis . | . . . Rewire . | . . . Trap . | . . . Miscellaneous . | . . . Route ------- -11/Scrapyard -10/Materials (discovered 4 exits: *Mat x3 / [*Min]) -9/Materials (discovered 2 exits: [*Mat] / [*Min]) History --------- Turn | Location | Event 17 | -11/Scrapyard | Discovered new exit (range 15) 86 | -11/Scrapyard | Entered Materials 310 | -10/Materials | Build established: Mutant 406 | -10/Materials | Discovered new exit (range 8) 709 | -10/Materials | Discovered new exit (range 14) 1157 | -10/Materials | Discovered new exit (range 15) 1379 | -10/Materials | Core integrity fell below 50% 1449 | -10/Materials | Discovered new exit (range 16) 1585 | -10/Materials | Entered another Materials area 1585 | -9/Materials | Evolved 2 slots: Propulsion x2 1746 | -9/Materials | Lost 4 parts (1p1n2w) 1752 | -9/Materials | Destroyed 8 combat bots 1805 | -9/Materials | Core integrity fell below 50% 1839 | -9/Materials | Lost 4 parts (1p2n1w) 2118 | -9/Materials | Build established: Scavenger-Mutant 2293 | -9/Materials | Discovered new exit (range 7) 2395 | -9/Materials | Discovered new exit (range 10) 2775 | -9/Materials | Core integrity fell below 20% 3185 | -9/Materials | First assault squad dispatched 3239 | -9/Materials | Destroyed by L-31 Rogue with Katana Last Messages --------------- U-05 Engineer lays Concrete. U-05 Engineer builds a Wall. Aluminum Leg destroyed. U-05 Engineer lays Concrete. System Shield destroyed. System corrupted by crushing effect (+5). U-05 Engineer lays Concrete. Aluminum Leg destroyed. B-36 Bruiser destroyed. Rocket Launcher destroyed. Destroyed Rocket Launcher. Hvy. EM Pulse Gun destroyed. Destroyed Hvy. EM Pulse Gun. L-31 Rogue destroyed. G-34 Mercenary destroyed. U-05 Engineer lays Concrete. R-06 Scavenger collects Wheel. U-05 Engineer builds a Wall. L-31 Rogue destroyed. System corrupted: Energy discharge (-92). Map ----- +----------------------------------------------------+ | ??????????###?# # #?????????# #??????# | | ??????????????# # #?????????# #??????# | | ??????????????# # ###########+######## | | ?????????????## # + ## | | ?????????????# ####??# ## | | ?????????????### ##+####### """ # | | ??????????????# % # [ # """"" # | | ??????????????# # # """"" + % | | ?????????###??### % # =# """"" # | | ?????????T ??# # [ # """ # | | ????????? ??# = + # ## | | ???????# """ ??## =% # ## | | ???????# """ ??# "###% ###+#######% | | ???????# """ ??##" " % #?# #?????# | | ???????# ####"""# "%" # ? ??# #????## | | ????????# ####### " ######+#### ###### | | # ## ## ## %%%%%% " | | ######### "T | | % | | ]%]! ##########+## #######+####### | | ???###+## [][ #?# ## ####?? ?????##### | | ????????# ??# =m*%[g# #?? ????????? | | ????????## ???# = g%/ # #???????? | | ?????????# ????# [ =! |# """ #???????? | | ?????????# ?????# /%% < "# """ #???????? | | ?????????# ?????# " %@ ||# """ #???????? | | ?????????#??????# l # ""########???????? | | ????????????????# # "#??????????????? | | ????????????????############ ####??????????????? | | ???????????????????????????# #?????????????????? | | ???????????????????????????+ #?????????????????? | | ???????????????????????????# #?????????????????? | | ???????????????????????????# #?????????????????? | | ???????????????????????????# #?????????????????? | | ???????????????????????????# #?????????????????? | | ???????????????????????????# ?????????????????? | | ???????????????????????????? ?????????????????? | | ???????????????????????????? ?????????????????? | | ????????????????????????????#+##?????????????????? | | ?????????????????????????????????????????????????? | | ?????????????????????????????????????????????????? | | ?????????????????????????????????????????????????? | | ?????????????????????????????????????????????????? | | ?????????????????????????????????????????????????? | | ?????????????????????????????????????????????????? | | ?????????????????????????????????????????????????? | | ?????????????????????????????????????????????????? | | ?????????????????????????????????????????????????? | | ?????????????????????????????????????????????????? | | ?????????????????????????????????????????????????? | +----------------------------------------------------+ Best States ------------- Heat Dissipation 28 Energy Generation 14 Energy Capacity 280 Matter Stores 396 Matter Capacity 400 Sight Range 16 Terrain Scan Density 10 Armor Coverage 150 Evasion (%) 55 Defensive Hacking 10 Item Schematics ----------------- None Robot Schematics ------------------ None Fabricated ------------ Nothing Alien Tech Used ----------------- None Achievements -------------- Significant Disruption Challenges ------------ None Game ------ Seed AssemblyChargeSpear Manual? 0 Play Time 00:25:14 Cumulative 2.7 hours Start 2022.06.17 @ 20:27:17 End 2022.06.17 @ 20:53:18 Sessions 1 Manual Loads 0 Difficulty Rogue Special Mode None Game No. 6 Rogue 6 Adventurer 0 Explorer 0 Win Type - Total 0 Types 0/0/0/0/0/0/0/0/0 Lore% 2 Gallery% 8 Achievement% 7 Wizard Run 0 Options --------- ASCII 0 Keyboard 0 Movement Arrows Keybinds 0 Fullscreen 0 Font 16/Cog Map View 76x50 Tactical HUD 0 Map Filters NONE Filters NONE Steam 1 RUN: 0064db1b-0357-4a98-acaf-a4a51fb5ad0d